bitfinex-derivatives/quotes_SOLF0:USTF0_20251018
["timestamp","ask_amount","ask_price","bid_price","bid_amount"]
[1760810944176,3.3377843,185.48,185.38,6.56458623]
[1760810944377,1.55,185.47,185.38,6.56458623]
[1760810944891,3.3377843,185.48,185.38,6.56458623]
[1760810945190,6.402,185.45,185.39,2.78]
[1760810945886,4.8514,185.47,185.4,9.34458623]
[1760810946085,4.8514,185.47,185.41,2.78]
[1760810946386,4.8514,185.47,185.41,9.34458623]
[1760810948583,4.8514,185.47,185.41,6.56458623]
[1760810948895,4.8508,185.49,185.43,2.73]
[1760810949591,4.8508,185.49,185.43,9.29458623]
[1760810950388,4.8508,185.49,185.43,6.56458623]
[1760810950692,6.4008,185.49,185.46,4.99807613]
[1760810954189,6.4008,185.49,185.46,7.72807613]
[1760810954886,6.4008,185.49,185.46,4.99807613]
[1760810955092,4.8508,185.49,185.47,2.73]
[1760810955793,6.4004,185.51,185.47,7.72807613]
[1760810955990,6.4004,185.51,185.48,2.73]
[1760810956695,4.8504,185.51,185.49,7.73807613]
[1760810956887,4.8504,185.51,185.49,4.99807613]
[1760810957093,4.8507,185.5,185.48,4.99807613]
[1760810957293,1.55,185.49,185.47,4.99807613]
[1760810957990,1.55,185.49,185.46,4.99807613]
[1760810958196,6.4009,185.49,185.46,4.99807613]
[1760810958597,6.4009,185.49,185.46,4.99757404]
[1760810959193,6.4009,185.49,185.47,4.99757404]
[1760810959393,6.4009,185.49,185.47,4.9978005]
[1760810961095,4.8509,185.49,185.47,7.7378005]
[1760810961789,4.8509,185.49,185.47,4.9978005]
[1760810962098,4.8509,185.49,185.48,2.74]
[1760810962500,4.8509,185.49,185.47,4.9978005]
[1760810963296,1.55,185.48,185.47,4.9978005]
[1760810963696,4.8509,185.49,185.47,4.9978005]
[1760810963898,1.55,185.48,185.47,4.9978005]
[1760810965003,4.8509,185.49,185.47,4.9978005]
[1760810967006,6.4009,185.49,185.47,4.9978005]
[1760810970501,4.8509,185.49,185.47,7.7378005]
[1760810970708,1.55,185.52,185.48,2.74]
[1760810970709,4.8504,185.51,185.48,2.74]
[1760810971009,4.8504,185.51,185.49,5.00304684]
[1760810971407,4.8504,185.51,185.5,2.74]
[1760810972508,4.8497,185.54,185.5,5.00304684]
[1760810972819,4.8497,185.54,185.51,7.74304684]
[1760810973207,4.8498,185.53,185.51,7.74304684]
[1760810973408,4.8498,185.53,185.51,2.74]
[1760810974814,4.8498,185.53,185.5,5.00304684]
[1760810975015,4.8498,185.53,185.52,5.00304684]
[1760810975215,6.3998,185.53,185.52,5.00304684]
[1760810975415,6.3998,185.53,185.51,5.00304684]
[1760810976521,6.3998,185.53,185.5,7.74304684]
[1760810977411,4.8498,185.53,185.51,2.74]
[1760810977611,6.3998,185.53,185.51,2.74]
[1760810977911,1.55,185.53,185.49,5.00304684]
[1760810978216,3.3377843,185.54,185.49,5.00304684]
[1760810978417,1.55,185.53,185.49,5.00304684]
[1760810978714,46.25,185.56,185.5,7.74304684]
[1760810979313,1.55,185.55,185.51,7.74304684]
[1760810979712,1.55,185.55,185.52,2.74]
[1760810980122,4.8496,185.54,185.52,2.74]
[1760810980913,4.8496,185.54,185.51,5.00304684]
[1760810981118,4.8496,185.54,185.52,2.74]
[1760810982117,4.8496,185.54,185.51,5.00304684]
[1760810982512,4.8491,185.56,185.51,5.00304684]
[1760810982711,4.8491,185.56,185.52,2.74]
[1760810982920,6.3991,185.56,185.52,2.74]
[1760810983128,6.3991,185.56,185.53,2.74]
[1760810985321,4.8491,185.56,185.52,7.74304684]
[1760810985621,4.8491,185.56,185.52,5.00304684]
[1760810985821,4.8491,185.56,185.53,2.74]
[1760810986020,4.8491,185.56,185.52,5.00304684]
[1760810986216,4.8491,185.56,185.53,2.82]
[1760810986419,4.8491,185.56,185.54,2.82]
[1760810987025,4.8491,185.56,185.52,5.00304684]
[1760810987217,49.5677843,185.59,185.54,5.00304684]
[1760810987419,49.5677843,185.59,185.55,2.82]
[1760810987618,1.55,185.59,185.54,5.00304684]
[1760810987814,1.55,185.59,185.56,2.82]
[1760810990028,4.848,185.6,185.55,5.00304684]
[1760810990326,4.8474,185.62,185.56,2.82]
[1760810990629,4.8474,185.62,185.56,7.82304684]
[1760810990835,4.8474,185.62,185.57,5.00304684]
[1760810991026,6.3974,185.62,185.58,2.82]
[1760810991231,6.3974,185.62,185.59,2.82]
[1760810992729,4.8478,185.61,185.56,7.82304684]
[1760810992935,4.8478,185.61,185.55,5.00304684]
[1760810992936,1.55,185.61,185.55,5.00304684]
[1760810993240,1.55,185.61,185.54,5.00304684]
[1760810993934,4.8481,185.6,185.54,5.00304684]
[1760810994134,1.55,185.61,185.54,5.00304684]
[1760810994333,1.55,185.61,185.53,7.82304684]
[1760810994533,48.0177843,185.62,185.53,7.82304684]
[1760810994738,1.55,185.61,185.53,7.82304684]
[1760810994934,48.0177843,185.62,185.53,7.82304684]
[1760810995137,1.55,185.61,185.53,7.82304684]
[1760810995840,4.8486,185.58,185.54,2.82]
[1760810996240,4.8486,185.58,185.55,2.82]
[1760810996836,4.8486,185.58,185.53,5.00304684]
[1760810997241,4.8486,185.58,185.54,2.82]
[1760810997437,4.8486,185.58,185.55,2.82]
[1760810998041,4.848,185.6,185.54,5.00304684]
[1760810998240,4.848,185.6,185.55,2.82]
[1760810998440,4.848,185.6,185.56,2.82]
[1760810998637,6.398,185.6,185.57,2.82]
[1760811001544,3.3377843,185.62,185.55,5.00304684]
[1760811001749,1.55,185.58,185.52,5.00304684]
[1760811001943,3.3377843,185.59,185.51,5.00304684]
[1760811002144,1.55,185.58,185.52,5.00304684]
[1760811002346,1.55,185.56,185.52,7.82304684]
[1760811002543,6.3988,185.57,185.52,5.00304684]
[1760811002738,6.3988,185.57,185.54,2.82]
[1760811003138,6.3988,185.57,185.52,5.00304684]
[1760811003139,4.8488,185.57,185.52,5.00304684]
[1760811003343,4.8488,185.57,185.53,2.82]
[1760811003547,4.8488,185.57,185.54,2.82]
[1760811003747,6.3988,185.57,185.54,2.82]
[1760811004343,4.8488,185.57,185.53,2.82]
[1760811004647,4.8488,185.57,185.54,2.82]
[1760811005546,3.3377843,185.56,185.51,7.82304684]
[1760811005738,1.55,185.55,185.5,5.00304684]
[1760811005939,3.3377843,185.56,185.5,5.00304684]
[1760811006344,4.8493,185.55,185.5,5.00304684]
[1760811006545,1.55,185.54,185.5,7.69304684]
[1760811006743,4.8493,185.55,185.51,2.69]
[1760811006948,6.3993,185.55,185.52,2.69]
[1760811007447,1.55,185.54,185.51,7.69304684]
[1760811008853,6.3996,185.54,185.51,7.69304684]
[1760811009158,1.55,185.54,185.51,2.69]
[1760811009951,1.55,185.51,185.49,5.00304684]
[1760811010147,3.3377843,185.53,185.48,5.00304684]
[1760811010548,1.55,185.49,185.46,5.00304684]
[1760811011155,1.55,185.49,185.45,5.00304684]
[1760811011349,1.55,185.49,185.45,7.69304684]
[1760811011554,1.55,185.49,185.46,5.00304684]
[1760811011955,6.401,185.49,185.46,5.00304684]
[1760811013162,1.55,185.49,185.46,2.69]
[1760811013460,1.55,185.49,185.46,7.69304684]
[1760811015156,9.7384843,185.5,185.47,2.69]
[1760811016461,6.4009,185.49,185.46,5.00304684]
[1760811016649,1.55,185.48,185.46,5.00304684]
[1760811017056,6.4009,185.49,185.46,7.70304684]
[1760811017255,6.4009,185.49,185.46,2.7]
[1760811017759,6.4009,185.49,185.46,7.70304684]
[1760811018162,6.4009,185.49,185.46,2.7]
[1760811021563,4.8512,185.48,185.46,2.7]
[1760811022061,4.8515,185.47,185.45,5.00304684]
[1760811022267,1.55,185.49,185.43,2.7]
[1760811022466,1.55,185.46,185.43,2.7]
[1760811022660,3.3377843,185.47,185.43,2.7]
[1760811022957,1.55,185.46,185.43,2.7]
[1760811023562,1.55,185.46,185.41,5.00304684]
[1760811023764,3.3377843,185.47,185.42,2.7]
[1760811023963,4.8517,185.46,185.42,2.7]
[1760811024364,4.8517,185.46,185.41,5.00304684]
[1760811024768,6.4017,185.46,185.42,2.7]
[1760811025067,6.4017,185.46,185.43,2.7]
[1760811026069,4.8517,185.46,185.41,5.00304684]
[1760811026259,4.8517,185.46,185.42,2.7]
[1760811026767,4.8517,185.46,185.41,5.00304684]
[1760811027170,4.8517,185.46,185.42,2.7]
[1760811027361,4.8517,185.46,185.43,2.7]
[1760811027565,4.8517,185.46,185.42,5.00304684]
[1760811028464,4.8517,185.46,185.43,2.7]
[1760811028769,4.8517,185.46,185.42,5.00304684]
[1760811029864,4.8517,185.46,185.43,2.7]
[1760811030066,4.8517,185.46,185.42,5.00304684]
[1760811030370,4.8517,185.46,185.43,2.7]
[1760811030671,4.8517,185.46,185.42,5.00304684]
[1760811030869,4.8517,185.46,185.43,2.7]
[1760811031061,4.8517,185.46,185.41,5.00304684]
[1760811031062,1.55,185.45,185.41,5.00304684]
[1760811031267,1.55,185.44,185.41,2.7]
[1760811032575,1.55,185.44,185.4,5.00304684]
[1760811032777,1.55,185.47,185.41,2.7]
[1760811034074,4.8519,185.45,185.4,5.00304684]
[1760811034271,4.8519,185.45,185.41,2.7]
[1760811034870,4.8519,185.45,185.41,7.70304684]
[1760811035070,4.8519,185.45,185.41,5.00304684]
[1760811035871,6.4014,185.47,185.41,5.00304684]
[1760811036071,6.4014,185.47,185.42,2.7]
[1760811036571,4.8514,185.47,185.42,2.7]
[1760811036768,1.55,185.46,185.43,2.7]
[1760811037773,4.8514,185.47,185.42,2.7]
[1760811038373,4.8514,185.47,185.42,5.00304684]
[1760811038682,6.4009,185.49,185.43,2.7]
[1760811039373,4.8509,185.49,185.44,2.7]
[1760811039578,3.3377843,185.51,185.45,2.7]
[1760811039579,8.1881843,185.51,185.45,2.7]
[1760811039971,4.8504,185.51,185.45,7.70304684]
[1760811041780,4.8504,185.51,185.45,5.00304684]
[1760811042178,4.8504,185.51,185.46,2.7]
[1760811042381,4.8504,185.51,185.45,5.00304684]
[1760811043078,4.8504,185.51,185.48,2.7]
[1760811043782,6.4004,185.51,185.48,2.7]
[1760811044276,1.55,185.49,185.45,5.00304684]
[1760811044481,3.3377843,185.49,185.45,5.00304684]
[1760811044782,3.3377843,185.49,185.44,5.00304684]
[1760811044977,1.55,185.48,185.44,5.00304684]
[1760811045485,3.3377843,185.49,185.44,5.00304684]
[1760811045985,4.8512,185.48,185.44,5.00304684]
[1760811046178,1.55,185.47,185.44,5.00304684]
[1760811046486,6.4012,185.48,185.45,7.87304684]
[1760811047285,6.4012,185.48,185.45,2.87]
[1760811048185,6.4012,185.48,185.45,7.87304684]
[1760811049394,4.8514,185.47,185.45,5.00304684]
[1760811049890,1.55,185.45,185.43,5.00304684]
[1760811050191,3.3377843,185.46,185.42,5.00304684]
[1760811050496,6.4022,185.44,185.42,5.00304684]
[1760811050695,1.55,185.43,185.42,5.00304684]
[1760811051100,1.55,185.43,185.4,6.56458623]
[1760811051395,1.55,185.43,185.4,9.43458623]
[1760811051791,1.55,185.43,185.42,5.01843425]
[1760811052094,1.55,185.43,185.4,9.43458623]
[1760811053198,1.55,185.43,185.41,6.56458623]
[1760811053593,6.4025,185.43,185.4,9.43458623]
[1760811054200,6.4025,185.43,185.41,6.56458623]
[1760811054396,1.55,185.42,185.41,6.56458623]
[1760811054606,4.8528,185.41,185.39,9.43458623]
[1760811055697,4.8524,185.43,185.4,2.87]
[1760811055900,4.8524,185.43,185.42,5.02370274]
[1760811057899,9.7012,185.5,185.41,9.84687935]
[1760811057900,1.55,185.48,185.41,9.84687935]
[1760811058193,1.55,185.48,185.46,5.01816899]
[1760811058993,4.8514,185.47,185.46,5.01816899]
[1760811061604,4.8517,185.46,185.44,5.01816899]
[1760811061801,4.8517,185.46,185.43,7.88816899]
[1760811061999,6.4017,185.46,185.43,7.88816899]
[1760811062295,6.4017,185.46,185.44,5.01816899]
[1760811064599,4.8517,185.46,185.44,5.01816899]
[1760811064798,6.4017,185.46,185.44,5.01816899]
[1760811066695,4.8517,185.46,185.44,7.81816899]
[1760811066901,6.4111,185.48,185.44,7.81816899]
[1760811067400,6.4111,185.48,185.45,2.8]
[1760811067596,6.4111,185.48,185.46,2.8]
[1760811067802,4.8511,185.48,185.47,2.8]
[1760811068902,4.8506,185.5,185.48,2.8]
[1760811070601,1.56,185.51,185.48,7.81816899]
[1760811071004,1.56,185.51,185.49,5.01816899]
[1760811071302,1.56,185.51,185.49,7.81816899]
[1760811071698,6.4104,185.51,185.49,7.81816899]
[1760811072098,6.4104,185.51,185.49,2.8]
[1760811072305,6.4104,185.51,185.49,7.81816899]
[1760811072705,6.4104,185.51,185.49,5.01816899]
[1760811072905,6.4104,185.51,185.48,5.01816899]
[1760811073100,6.4104,185.51,185.48,7.81816899]
[1760811074508,1.56,185.5,185.48,7.81816899]
[1760811076509,6.4004,185.51,185.48,7.81816899]
[1760811079308,1.55,185.5,185.42,6.69089199]
[1760811079513,3.3377843,185.48,185.42,6.69089199]
[1760811079815,1.55,185.47,185.41,9.50089199]
[1760811080208,6.4022,185.44,185.41,9.50089199]
[1760811080605,6.4022,185.44,185.41,2.81]
[1760811081109,3.3377843,185.48,185.4,6.69089199]
[1760811081110,4.8526,185.42,185.4,9.50089199]
[1760811081315,4.8526,185.42,185.38,6.69089199]
[1760811081316,6.4026,185.42,185.38,6.69089199]
[1760811081617,1.55,185.41,185.38,9.50089199]
[1760811081911,6.403,185.41,185.38,2.81]
[1760811082417,1.55,185.41,185.37,6.69089199]
[1760811082616,3.3377843,185.42,185.36,6.69089199]
[1760811082817,1.55,185.41,185.36,9.50089199]
[1760811083214,3.3377843,185.42,185.36,2.81]
[1760811083511,1.55,185.41,185.36,2.81]
[1760811083716,3.3377843,185.42,185.35,6.69089199]
[1760811083917,6.4036,185.39,185.35,9.50089199]
[1760811084124,1.55,185.38,185.35,9.50089199]
[1760811085316,6.4039,185.38,185.35,2.81]
[1760811085718,1.55,185.37,185.33,6.69089199]
[1760811085913,1.55,185.36,185.33,9.50089199]
[1760811086814,6.4041,185.37,185.34,2.81]
[1760811087014,4.8544,185.35,185.34,2.81]
[1760811088811,4.8544,185.35,185.32,6.69089199]
[1760811089012,4.8544,185.35,185.33,2.81]
[1760811090414,4.8544,185.35,185.32,6.69089199]
[1760811090914,4.854,185.37,185.33,2.81]
[1760811091110,4.854,185.37,185.31,6.69089199]
[1760811091315,4.854,185.37,185.32,2.81]
[1760811092013,4.854,185.37,185.31,6.69089199]
[1760811092219,4.854,185.37,185.32,2.81]
[1760811092419,4.854,185.37,185.32,6.69089199]
[1760811092615,4.854,185.37,185.31,6.69089199]
[1760811092822,6.404,185.37,185.32,2.81]
[1760811093318,4.8543,185.36,185.31,6.69089199]
[1760811093519,1.55,185.38,185.32,2.81]
[1760811094916,4.854,185.37,185.32,2.81]
[1760811095316,4.854,185.37,185.33,2.81]
[1760811096025,4.854,185.37,185.32,6.69089199]
[1760811096324,4.854,185.37,185.33,2.81]
[1760811096821,4.854,185.37,185.32,6.69089199]
[1760811097022,4.854,185.37,185.33,2.81]
[1760811097222,4.854,185.37,185.32,6.69089199]
[1760811097718,4.854,185.37,185.33,2.81]
[1760811097924,4.854,185.37,185.34,2.81]
[1760811098317,4.854,185.37,185.33,6.69089199]
[1760811098917,4.854,185.37,185.34,2.81]
[1760811099223,4.854,185.37,185.33,6.69089199]
[1760811099418,4.854,185.37,185.34,2.81]
[1760811100021,4.854,185.37,185.31,2.81]
[1760811100323,4.854,185.37,185.31,9.50089199]
[1760811101325,4.8543,185.36,185.32,2.81]
[1760811101525,4.8543,185.36,185.31,6.69089199]
[1760811101821,4.8543,185.36,185.32,2.81]
[1760811102018,4.8543,185.36,185.31,6.69089199]
[1760811102218,4.8543,185.36,185.32,2.81]
[1760811102622,4.8543,185.36,185.31,6.69089199]
[1760811103020,4.8543,185.36,185.32,2.81]
[1760811103423,4.8543,185.36,185.31,6.69089199]
[1760811103618,4.8543,185.36,185.32,2.81]
[1760811104218,4.8543,185.36,185.31,6.69089199]
[1760811104418,4.8543,185.36,185.32,2.81]
[1760811104822,4.8543,185.36,185.31,6.69089199]
[1760811105119,4.8543,185.36,185.32,2.81]
[1760811105322,4.8543,185.36,185.31,6.69089199]
[1760811105918,4.8543,185.36,185.32,2.81]
[1760811106324,4.8543,185.36,185.32,2.86]
[1760811106526,4.8537,185.38,185.32,9.55089199]
[1760811106722,4.8537,185.38,185.33,2.86]
[1760811107423,4.8537,185.38,185.32,6.69089199]
[1760811107619,4.8537,185.38,185.33,2.86]
[1760811107820,6.4032,185.4,185.33,2.86]
[1760811110328,6.4032,185.4,185.33,7.7148]
[1760811110528,6.4032,185.4,185.33,11.54569199]
[1760811110727,6.4032,185.4,185.34,2.86]
[1760811112123,4.8535,185.39,185.33,9.55089199]
[1760811112424,4.8535,185.39,185.33,6.69089199]
[1760811112628,4.8535,185.39,185.34,2.86]
[1760811112829,4.8535,185.39,185.33,6.69089199]
[1760811113029,4.8535,185.39,185.34,2.86]
[1760811113421,4.8535,185.39,185.33,6.69089199]
[1760811113622,4.8535,185.39,185.34,2.86]
[1760811114129,4.8535,185.39,185.32,11.54589199]
[1760811114430,4.8535,185.39,185.33,9.55089199]
[1760811115925,4.8539,185.38,185.31,6.69089199]
[1760811116123,1.55,185.39,185.32,6.69089199]
[1760811116324,1.55,185.38,185.31,6.69089199]
[1760811116520,1.55,185.39,185.31,6.69089199]
[1760811116725,3.3377843,185.4,185.3,6.69089199]
[1760811117225,1.55,185.39,185.3,6.69089199]
[1760811117434,4.8543,185.36,185.3,6.69089199]
[1760811117629,6.4043,185.36,185.3,9.55089199]
[1760811118237,6.4043,185.36,185.31,6.69089199]
[1760811118424,4.8543,185.36,185.31,6.69089199]
[1760811118622,4.8548,185.34,185.31,6.69089199]
[1760811118827,1.55,185.33,185.31,2.86]
[1760811119226,3.3377843,185.37,185.3,6.69089199]
[1760811119427,1.55,185.36,185.3,9.55089199]
[1760811119629,6.4043,185.36,185.3,9.55089199]
[1760811120228,1.55,185.35,185.31,9.55089199]
[1760811120631,4.8543,185.36,185.31,9.55089199]
[1760811120936,4.8543,185.36,185.34,2.86]
[1760811121436,6.4043,185.36,185.33,2.86]
[1760811121633,1.55,185.35,185.32,9.55089199]
[1760811121829,1.55,185.35,185.32,6.69089199]
[1760811122135,1.55,185.35,185.33,2.86]
[1760811122633,4.8543,185.36,185.33,2.86]
[1760811122934,6.4043,185.36,185.33,2.86]
[1760811123136,6.4043,185.36,185.33,9.55089199]
[1760811124233,6.4043,185.36,185.34,6.69089199]
[1760811124424,6.4038,185.38,185.35,6.69089199]
[1760811124624,4.8538,185.38,185.35,9.55089199]
[1760811124834,1.55,185.37,185.35,9.55089199]
[1760811126235,1.55,185.39,185.36,6.69089199]
[1760811127140,4.8532,185.4,185.36,6.69089199]
[1760811127630,1.55,185.39,185.36,9.45089199]
[1760811128940,4.8532,185.4,185.36,9.45089199]
[1760811129236,1.55,185.39,185.36,9.45089199]
[1760811131133,6.4035,185.39,185.36,9.45089199]
[1760811131831,6.4035,185.39,185.36,6.69089199]
[1760811132039,6.4035,185.39,185.36,9.45089199]
[1760811132440,6.4035,185.39,185.37,6.69089199]
[1760811135441,6.4035,185.39,185.37,9.45089199]
[1760811136541,4.8535,185.39,185.38,2.76]
[1760811137441,1.55,185.42,185.38,6.72172256]
[1760811137641,3.3377843,185.46,185.4,2.76]
[1760811137642,1.55,185.45,185.4,2.76]
[1760811137838,3.3377843,185.46,185.38,6.72172256]
[1760811138040,4.8525,185.43,185.4,2.76]
[1760811138242,4.8525,185.43,185.39,6.72172256]
[1760811138441,4.8525,185.43,185.4,2.76]
[1760811138642,4.8525,185.43,185.39,6.72172256]
[1760811138843,4.8525,185.43,185.4,2.76]
[1760811139042,4.8525,185.43,185.39,6.72172256]
[1760811139238,6.4019,185.45,185.38,6.72172256]
[1760811139443,6.4019,185.45,185.39,9.48172256]
[1760811139945,4.8522,185.44,185.39,6.72172256]
[1760811140144,6.4022,185.44,185.4,2.76]
[1760811140349,6.4022,185.44,185.39,6.72172256]
[1760811141443,6.4022,185.44,185.4,2.76]
[1760811141741,4.8524,185.43,185.4,2.76]
[1760811141935,6.4024,185.43,185.38,6.72172256]
[1760811142540,6.4024,185.43,185.39,2.76]
[1760811143040,6.4024,185.43,185.38,6.72172256]
[1760811143241,6.4024,185.43,185.39,2.76]
[1760811143545,6.4024,185.43,185.38,6.72172256]
[1760811144540,6.4024,185.43,185.39,2.76]
[1760811145040,6.4024,185.43,185.38,6.72172256]
[1760811146245,6.4024,185.43,185.39,2.76]
[1760811146546,6.4024,185.43,185.38,6.72172256]
[1760811147639,1.55,185.42,185.36,6.72172256]
[1760811147845,1.55,185.42,185.34,6.72172256]
[1760811148747,1.55,185.41,185.34,9.48172256]
[1760811148943,4.8535,185.39,185.34,9.48172256]
[1760811149247,6.4035,185.39,185.35,2.76]
[1760811149642,1.55,185.38,185.35,2.76]
[1760811152240,1.55,185.38,185.34,6.72172256]
[1760811152446,1.55,185.38,185.35,2.76]
[1760811152647,6.4035,185.39,185.34,6.72172256]
[1760811152848,6.4035,185.39,185.35,2.76]
[1760811153452,4.8529,185.41,185.38,2.76]
[1760811153848,6.4029,185.41,185.38,2.76]
[1760811154047,1.55,185.4,185.36,6.72172256]
[1760811154252,1.55,185.4,185.36,2.76]
[1760811156256,1.55,185.4,185.36,6.72172256]
[1760811156456,1.55,185.4,185.37,2.76]
[1760811156945,6.4033,185.4,185.37,2.76]
[1760811157150,1.55,185.39,185.36,2.76]
[1760811158655,4.8533,185.4,185.36,2.76]
[1760811158856,6.4033,185.4,185.36,2.76]
[1760811159357,6.4033,185.4,185.35,6.72172256]
[1760811159549,6.4033,185.4,185.36,2.76]
[1760811159950,6.4033,185.4,185.35,6.72172256]
[1760811160156,6.4033,185.4,185.36,2.76]
[1760811160450,6.4033,185.4,185.35,6.72172256]
[1760811160855,6.4033,185.4,185.36,2.76]
[1760811161857,1.55,185.39,185.37,2.76]
[1760811163255,3.3377843,185.44,185.36,6.72172256]
[1760811163453,1.55,185.43,185.35,6.72172256]
[1760811163960,1.55,185.42,185.35,6.72172256]
[1760811164159,3.3377843,185.44,185.35,9.48172256]
[1760811164160,1.55,185.43,185.35,9.48172256]
[1760811164757,1.55,185.42,185.35,9.48172256]
[1760811165555,1.55,185.37,185.35,6.72172256]
[1760811165759,1.55,185.37,185.29,4.8559]
[1760811165760,1.55,185.37,185.34,9.48172256]
[1760811165959,1.55,185.37,185.35,2.76]
[1760811167160,6.4038,185.38,185.35,2.64]
[1760811167362,6.4038,185.38,185.34,6.72172256]
[1760811168157,4.8532,185.4,185.33,2.64]
[1760811169062,1.55,185.41,185.37,6.72143447]
[1760811169257,1.55,185.41,185.38,2.64]
[1760811169458,1.55,185.41,185.37,6.72143447]
[1760811169761,1.55,185.41,185.38,2.64]
[1760811169962,1.55,185.41,185.37,6.72143447]
[1760811170161,4.8527,185.42,185.38,2.64]
[1760811170363,6.4027,185.42,185.38,2.64]
[1760811170758,6.4027,185.42,185.37,6.72143447]
[1760811170960,4.8527,185.42,185.37,6.72143447]
[1760811171561,4.8527,185.42,185.38,2.64]
[1760811171858,4.8527,185.42,185.37,6.72143447]
[1760811172064,4.8527,185.42,185.38,2.64]
[1760811172461,4.8527,185.42,185.38,6.72143447]
[1760811172966,4.853,185.41,185.39,2.64]
[1760811173162,6.403,185.41,185.38,9.36143447]
[1760811173767,6.403,185.41,185.39,2.64]
[1760811174268,6.403,185.41,185.39,9.36143447]
[1760811175169,6.4032,185.4,185.38,6.72143447]
[1760811178274,6.4032,185.4,185.37,6.72143447]
[1760811178478,6.4032,185.4,185.37,9.36143447]
[1760811180581,6.4032,185.4,185.37,6.72143447]
[1760811180781,6.4032,185.4,185.38,2.64]
[1760811180970,3.3377843,185.49,185.39,2.64]
[1760811181169,1.55,185.48,185.39,9.36143447]
[1760811181576,4.8523,185.43,185.4,2.64]
[1760811182280,4.8523,185.43,185.39,6.72143447]
[1760811182677,4.8523,185.43,185.4,2.64]
[1760811183074,4.8527,185.42,185.39,6.72143447]
[1760811183274,1.55,185.41,185.39,6.72143447]
[1760811183479,1.55,185.41,185.39,9.36143447]
[1760811183776,6.4027,185.42,185.39,9.36143447]
[1760811184181,4.8527,185.42,185.4,2.64]
[1760811184582,4.8527,185.42,185.39,6.72143447]
[1760811184784,4.8527,185.42,185.4,2.64]
[1760811188282,4.8527,185.42,185.39,6.72143447]
[1760811188484,4.8522,185.44,185.39,6.72143447]
[1760811188686,1.54,185.48,185.4,2.59]
[1760811189683,3.3377843,185.49,185.4,2.59]
[1760811189986,4.8524,185.43,185.39,6.72143447]
[1760811190882,4.8524,185.43,185.4,2.59]
[1760811191087,4.8524,185.43,185.39,6.72143447]
[1760811191385,4.8524,185.43,185.4,2.59]
[1760811192690,4.8524,185.43,185.39,6.72143447]
[1760811193691,4.8524,185.43,185.4,2.59]
[1760811193879,4.8524,185.43,185.39,6.72143447]
[1760811194085,4.8524,185.43,185.4,2.59]
[1760811195181,6.3924,185.43,185.39,6.72143447]
[1760811195384,1.54,185.41,185.39,6.72143447]
[1760811195589,1.54,185.45,185.38,6.72143447]
[1760811195791,1.54,185.42,185.37,6.72143447]
[1760811196392,1.56,185.42,185.36,9.31143447]
[1760811196591,3.3377843,185.43,185.36,9.31143447]
[1760811196792,1.56,185.42,185.36,9.31143447]
[1760811197988,1.56,185.39,185.36,9.31143447]
[1760811200289,4.8534,185.4,185.37,2.87]
[1760811200593,4.8534,185.4,185.36,6.72143447]
[1760811200792,4.8534,185.4,185.38,2.87]
[1760811200991,4.8534,185.4,185.39,2.87]
[1760811202192,6.4134,185.4,185.37,9.59143447]
[1760811202496,4.8534,185.4,185.39,2.87]
[1760811203589,4.8527,185.42,185.39,2.87]
[1760811203791,4.8527,185.42,185.38,6.72143447]
[1760811204087,1.56,185.44,185.38,6.72143447]
[1760811204989,4.853,185.41,185.38,6.72143447]